Workbook

Sheet Algu ievade
B1: ALGU KALKULATORS | K1: PERIODS BEIDZĀS: | L1: 2013-04-08 | N1: UZŅĒMUMA NOSAUKUMS: | P1: ADVENTURE WORKS
B3: ID | C3: Darbinieka vārds | D3: Nostrādātās stundas | E3: Atvaļinājuma stundas | F3: Slimības stundas | G3: Virsstundas | H3: Virsstundu likme | I3: Bruto samaksa | J3: Nodokļi un atvilkumi | K3: Citi atvilkumi | L3: Neto samaksa | N3: Stundu samaksa | O3: Nodokļu statuss | P3: Valsts pabalsts | Q3: Valsts nodoklis | R3: Valsts ienākumu nodoklis | S3: Sociālais nodoklis | T3: Medicīnas nodoklis | U3: Ieturētie nodokļi kopā | V3: Apdrošināšanas atvilkums | W3: Citi regulārie atvilkumi | X3: Regulārie atvilkumi kopā
B4: 1001 | C4: Ēriks Andersens | D4: 50 | E4: 5 | F4: 1 | I4: =SUM(Darbinieki[[#This Row],[Nostrādātās stundas]:[Slimības stundas]])*Darbinieki[[#This Row],[Stundu samaksa]]+Darbinieki[[#This Row],[Virsstundas]]*Darbinieki[[#This Row],[Virsstundu likme]] -> 560 | J4: =Darbinieki[[#This Row],[Bruto samaksa]]*Darbinieki[[#This Row],[Ieturētie nodokļi kopā]] + Darbinieki[[#This Row],[Regulārie atvilkumi kopā]] -> 273.08 | K4: 20 | L4: =Darbinieki[[#This Row],[Bruto samaksa]]-Darbinieki[[#This Row],[Nodokļi un atvilkumi]]-Darbinieki[[#This Row],[Citi atvilkumi]] -> 266.92 | N4: 10 | O4: 1 | P4: 4 | Q4: 0.023 | R4: 0.28 | S4: 0.063 | T4: 0.0145 | U4: =SUM(Darbinieki[[#This Row],[Valsts nodoklis]:[Medicīnas nodoklis]]) -> 0.3805 | V4: 20 | W4: 40 | X4: =SUM(Darbinieki[[#This Row],[Apdrošināšanas atvilkums]:[Citi regulārie atvilkumi]]) -> 60
B5: 1002 | C5: Jānis Vanags | D5: 40 | I5: =SUM(Darbinieki[[#This Row],[Nostrādātās stundas]:[Slimības stundas]])*Darbinieki[[#This Row],[Stundu samaksa]]+Darbinieki[[#This Row],[Virsstundas]]*Darbinieki[[#This Row],[Virsstundu likme]] -> 320 | J5: =Darbinieki[[#This Row],[Bruto samaksa]]*Darbinieki[[#This Row],[Ieturētie nodokļi kopā]] + Darbinieki[[#This Row],[Regulārie atvilkumi kopā]] -> 131.76 | L5: =Darbinieki[[#This Row],[Bruto samaksa]]-Darbinieki[[#This Row],[Nodokļi un atvilkumi]]-Darbinieki[[#This Row],[Citi atvilkumi]] -> 188.24 | N5: 8 | O5: 1 | P5: 1 | Q5: 0.023 | R5: 0.28 | S5: 0.063 | T5: 0.0145 | U5: =SUM(Darbinieki[[#This Row],[Valsts nodoklis]:[Medicīnas nodoklis]]) -> 0.3805 | V5: 0 | W5: 10 | X5: =SUM(Darbinieki[[#This Row],[Apdrošināšanas atvilkums]:[Citi regulārie atvilkumi]]) -> 10
B6: 1003 | C6: Līna Ābola | D6: 35 | E6: 3 | I6: =SUM(Darbinieki[[#This Row],[Nostrādātās stundas]:[Slimības stundas]])*Darbinieki[[#This Row],[Stundu samaksa]]+Darbinieki[[#This Row],[Virsstundas]]*Darbinieki[[#This Row],[Virsstundu likme]] -> 532 | J6: =Darbinieki[[#This Row],[Bruto samaksa]]*Darbinieki[[#This Row],[Ieturētie nodokļi kopā]] + Darbinieki[[#This Row],[Regulārie atvilkumi kopā]] -> 240.426 | L6: =Darbinieki[[#This Row],[Bruto samaksa]]-Darbinieki[[#This Row],[Nodokļi un atvilkumi]]-Darbinieki[[#This Row],[Citi atvilkumi]] -> 291.574 | N6: 14 | O6: 1 | P6: 3 | Q6: 0.023 | R6: 0.28 | S6: 0.063 | T6: 0.0145 | U6: =SUM(Darbinieki[[#This Row],[Valsts nodoklis]:[Medicīnas nodoklis]]) -> 0.3805 | V6: 18 | W6: 20 | X6: =SUM(Darbinieki[[#This Row],[Apdrošināšanas atvilkums]:[Citi regulārie atvilkumi]]) -> 38
B7: 1008 | C7: Mareks Stūris | D7: 50 | E7: 5 | F7: 1 | I7: =SUM(Darbinieki[[#This Row],[Nostrādātās stundas]:[Slimības stundas]])*Darbinieki[[#This Row],[Stundu samaksa]]+Darbinieki[[#This Row],[Virsstundas]]*Darbinieki[[#This Row],[Virsstundu likme]] -> 1120 | J7: =Darbinieki[[#This Row],[Bruto samaksa]]*Darbinieki[[#This Row],[Ieturētie nodokļi kopā]] + Darbinieki[[#This Row],[Regulārie atvilkumi kopā]] -> 441.16 | L7: =Darbinieki[[#This Row],[Bruto samaksa]]-Darbinieki[[#This Row],[Nodokļi un atvilkumi]]-Darbinieki[[#This Row],[Citi atvilkumi]] -> 678.84 | N7: 20 | O7: 1 | P7: 0 | Q7: 0.023 | R7: 0.28 | S7: 0.063 | T7: 0.0145 | U7: =SUM(Darbinieki[[#This Row],[Valsts nodoklis]:[Medicīnas nodoklis]]) -> 0.3805 | V7: 15 | X7: =SUM(Darbinieki[[#This Row],[Apdrošināšanas atvilkums]:[Citi regulārie atvilkumi]]) -> 15
B8: 1011 | C8: Austra Zvaniņa | D8: 40 | G8: 2 | H8: 15 | I8: =SUM(Darbinieki[[#This Row],[Nostrādātās stundas]:[Slimības stundas]])*Darbinieki[[#This Row],[Stundu samaksa]]+Darbinieki[[#This Row],[Virsstundas]]*Darbinieki[[#This Row],[Virsstundu likme]] -> 430 | J8: =Darbinieki[[#This Row],[Bruto samaksa]]*Darbinieki[[#This Row],[Ieturētie nodokļi kopā]] + Darbinieki[[#This Row],[Regulārie atvilkumi kopā]] -> 223.615 | L8: =Darbinieki[[#This Row],[Bruto samaksa]]-Darbinieki[[#This Row],[Nodokļi un atvilkumi]]-Darbinieki[[#This Row],[Citi atvilkumi]] -> 206.385 | N8: 10 | O8: 1 | P8: 0 | Q8: 0.023 | R8: 0.28 | S8: 0.063 | T8: 0.0145 | U8: =SUM(Darbinieki[[#This Row],[Valsts nodoklis]:[Medicīnas nodoklis]]) -> 0.3805 | V8: 20 | W8: 40 | X8: =SUM(Darbinieki[[#This Row],[Apdrošināšanas atvilkums]:[Citi regulārie atvilkumi]]) -> 60
B9: 1012 | C9: Andris Balodis | D9: 40 | E9: 5 | F9: 1 | I9: =SUM(Darbinieki[[#This Row],[Nostrādātās stundas]:[Slimības stundas]])*Darbinieki[[#This Row],[Stundu samaksa]]+Darbinieki[[#This Row],[Virsstundas]]*Darbinieki[[#This Row],[Virsstundu likme]] -> 552 | J9: =Darbinieki[[#This Row],[Bruto samaksa]]*Darbinieki[[#This Row],[Ieturētie nodokļi kopā]] + Darbinieki[[#This Row],[Regulārie atvilkumi kopā]] -> 270.036 | L9: =Darbinieki[[#This Row],[Bruto samaksa]]-Darbinieki[[#This Row],[Nodokļi un atvilkumi]]-Darbinieki[[#This Row],[Citi atvilkumi]] -> 281.964 | N9: 12 | O9: 1 | P9: 4 | Q9: 0.023 | R9: 0.28 | S9: 0.063 | T9: 0.0145 | U9: =SUM(Darbinieki[[#This Row],[Valsts nodoklis]:[Medicīnas nodoklis]]) -> 0.3805 | V9: 20 | W9: 40 | X9: =SUM(Darbinieki[[#This Row],[Apdrošināšanas atvilkums]:[Citi regulārie atvilkumi]]) -> 60
B10: 1025 | C10: Vera Ploce | D10: 36 | F10: 2 | G10: 1 | H10: 18 | I10: =SUM(Darbinieki[[#This Row],[Nostrādātās stundas]:[Slimības stundas]])*Darbinieki[[#This Row],[Stundu samaksa]]+Darbinieki[[#This Row],[Virsstundas]]*Darbinieki[[#This Row],[Virsstundu likme]] -> 474 | J10: =Darbinieki[[#This Row],[Bruto samaksa]]*Darbinieki[[#This Row],[Ieturētie nodokļi kopā]] + Darbinieki[[#This Row],[Regulārie atvilkumi kopā]] -> 225.357 | K10: 25 | L10: =Darbinieki[[#This Row],[Bruto samaksa]]-Darbinieki[[#This Row],[Nodokļi un atvilkumi]]-Darbinieki[[#This Row],[Citi atvilkumi]] -> 223.643 | N10: 12 | O10: 1 | P10: 2 | Q10: 0.023 | R10: 0.28 | S10: 0.063 | T10: 0.0145 | U10: =SUM(Darbinieki[[#This Row],[Valsts nodoklis]:[Medicīnas nodoklis]]) -> 0.3805 | V10: 25 | W10: 20 | X10: =SUM(Darbinieki[[#This Row],[Apdrošināšanas atvilkums]:[Citi regulārie atvilkumi]]) -> 45
B11: 1032 | C11: Jānis Porietis | D11: 40 | E11: 5 | F11: 1 | I11: =SUM(Darbinieki[[#This Row],[Nostrādātās stundas]:[Slimības stundas]])*Darbinieki[[#This Row],[Stundu samaksa]]+Darbinieki[[#This Row],[Virsstundas]]*Darbinieki[[#This Row],[Virsstundu likme]] -> 460 | J11: =Darbinieki[[#This Row],[Bruto samaksa]]*Darbinieki[[#This Row],[Ieturētie nodokļi kopā]] + Darbinieki[[#This Row],[Regulārie atvilkumi kopā]] -> 175.03 | K11: 50 | L11: =Darbinieki[[#This Row],[Bruto samaksa]]-Darbinieki[[#This Row],[Nodokļi un atvilkumi]]-Darbinieki[[#This Row],[Citi atvilkumi]] -> 234.97 | N11: 10 | O11: 1 | P11: 3 | Q11: 0.023 | R11: 0.28 | S11: 0.063 | T11: 0.0145 | U11: =SUM(Darbinieki[[#This Row],[Valsts nodoklis]:[Medicīnas nodoklis]]) -> 0.3805 | X11: =SUM(Darbinieki[[#This Row],[Apdrošināšanas atvilkums]:[Citi regulārie atvilkumi]]) -> 0
B12: 1049 | C12: Kārlis Kalns | D12: 40 | E12: 1 | I12: =SUM(Darbinieki[[#This Row],[Nostrādātās stundas]:[Slimības stundas]])*Darbinieki[[#This Row],[Stundu samaksa]]+Darbinieki[[#This Row],[Virsstundas]]*Darbinieki[[#This Row],[Virsstundu likme]] -> 615 | J12: =Darbinieki[[#This Row],[Bruto samaksa]]*Darbinieki[[#This Row],[Ieturētie nodokļi kopā]] + Darbinieki[[#This Row],[Regulārie atvilkumi kopā]] -> 259.0075 | K12: 23 | L12: =Darbinieki[[#This Row],[Bruto samaksa]]-Darbinieki[[#This Row],[Nodokļi un atvilkumi]]-Darbinieki[[#This Row],[Citi atvilkumi]] -> 332.9925 | N12: 15 | O12: 1 | P12: 2 | Q12: 0.023 | R12: 0.28 | S12: 0.063 | T12: 0.0145 | U12: =SUM(Darbinieki[[#This Row],[Valsts nodoklis]:[Medicīnas nodoklis]]) -> 0.3805 | V12: 25 | X12: =SUM(Darbinieki[[#This Row],[Apdrošināšanas atvilkums]:[Citi regulārie atvilkumi]]) -> 25
B13: Kopā | C13: =SUBTOTAL(103,Darbinieki[Darbinieka vārds] ) -> 9 | D13: =SUBTOTAL(109,Darbinieki[Nostrādātās stundas]) -> 371 | E13: =SUBTOTAL(109,Darbinieki[Atvaļinājuma stundas]) -> 24 | F13: =SUBTOTAL(109,Darbinieki[Slimības stundas]) -> 6 | G13: =SUBTOTAL(109,Darbinieki[Virsstundas]) -> 3 | I13: =SUBTOTAL(109,Darbinieki[Bruto samaksa]) -> 5063 | J13: =SUBTOTAL(109,Darbinieki[Nodokļi un atvilkumi]) -> 2239.4715 | K13: =SUBTOTAL(109,Darbinieki[Citi atvilkumi]) -> 118 | L13: =SUBTOTAL(109,Darbinieki[Neto samaksa]) -> 2705.5285 | V13: =SUBTOTAL(109,Darbinieki[Apdrošināšanas atvilkums]) -> 143 | W13: =SUBTOTAL(109,Darbinieki[Citi regulārie atvilkumi]) -> 170 | X13: =SUBTOTAL(109,Darbinieki[Regulārie atvilkumi kopā]) -> 313

Sheet pasakņu_veidne (hidden)
C2: =Uzņēmuma_nosaukums -> ADVENTURE WORKS
C3: PERIODS | D3: =Perioda_beigas -> 2013-04-08 | G3: VĀRDS, UZVĀRDS | H3: =IFERROR(INDEX(#REF!,Pasaknis),"") ->  | K3: DARBINIEKA ID | L3: =IFERROR(INDEX(Darbinieki[ID],Pasaknis),"") -> 1001
C4: Nodokļu statuss | E4: =IFERROR(INDEX(Darbinieki[Nodokļu statuss],Pasaknis),"") -> 1 | G4: Valsts pabalsts (no W-4) | I4: =IFERROR(INDEX(Darbinieki[Valsts pabalsts],Pasaknis),"") -> 4 | K4: Nostrādātās stundas | M4: =IFERROR(INDEX(Darbinieki[Nostrādātās stundas],Pasaknis),"") -> 50
C5: Stundas likme | E5: =IFERROR(INDEX(Darbinieki[Stundu samaksa],Pasaknis),"") -> 10 | G5: Virsstundu likme | I5: =IFERROR(INDEX(Darbinieki[Virsstundu likme],Pasaknis),"") -> 0 | K5: Slimības stundas | M5: =IFERROR(INDEX(Darbinieki[Slimības stundas],Pasaknis),"") -> 1
C6: Sociālais nodoklis | E6: =IFERROR(INDEX(Darbinieki[Sociālais nodoklis],Pasaknis) * INDEX(Darbinieki[Bruto samaksa],Pasaknis),"") -> 35.28 | G6: Valsts ienākumu nodoklis | I6: =IFERROR(INDEX(Darbinieki[Valsts ienākumu nodoklis],Pasaknis) * INDEX(Darbinieki[Bruto samaksa],Pasaknis),"") -> 156.8 | K6: Atvaļinājuma stundas | M6: =IFERROR(INDEX(Darbinieki[Atvaļinājuma stundas],Pasaknis),"") -> 5
C7: Medicīnas nodoklis | E7: =IFERROR(INDEX(Darbinieki[Medicīnas nodoklis],Pasaknis) * INDEX(Darbinieki[Bruto samaksa],Pasaknis),"") -> 8.12 | G7: Valsts nodoklis | I7: =IFERROR(INDEX(Darbinieki[Valsts nodoklis],Pasaknis) * INDEX(Darbinieki[Bruto samaksa],Pasaknis),"") -> 12.88 | K7: Virsstundas | M7: =IFERROR(INDEX(Darbinieki[Virsstundas],Pasaknis),"") -> 0
C8: Apdrošināšanas atvilkums | E8: =IFERROR(INDEX(Darbinieki[Apdrošināšanas atvilkums],Pasaknis),"") -> 20 | G8: Citi regulāri atvilkumi | I8: =IFERROR(INDEX(Darbinieki[Citi regulārie atvilkumi],Pasaknis),"") -> 40 | K8: Bruto samaksa | M8: =IFERROR(INDEX(Darbinieki[Bruto samaksa],Pasaknis),"") -> 560
C9: Nodokļi un | E9: =IFERROR(INDEX(Darbinieki[Nodokļi un atvilkumi],Pasaknis),"") -> 273.08 | G9: Citi atvilkumi | I9: =IFERROR(INDEX(Darbinieki[Citi atvilkumi],Pasaknis),"") -> 20 | K9: Nodokļi un atvilkumi kopā | M9: =IFERROR(INDEX(Darbinieki[Nodokļi un atvilkumi],Pasaknis) + INDEX(Darbinieki[Citi atvilkumi],Pasaknis),"") -> 293.08
C10: regulārie atvilkumi kopā
K11: NETO SAMAKSA | M11: =IFERROR(INDEX(Darbinieki[Neto samaksa],Pasaknis),"") -> 266.92
C14: =Uzņēmuma_nosaukums -> ADVENTURE WORKS
C15: PERIODS | D15: =Perioda_beigas -> 2013-04-08 | G15: VĀRDS, UZVĀRDS | H15: =IFERROR(INDEX(#REF!,Pasaknis),"") ->  | K15: DARBINIEKA ID | L15: =IFERROR(INDEX(Darbinieki[ID],Pasaknis),"") -> 1002
C16: Nodokļu statuss | E16: =IFERROR(INDEX(Darbinieki[Nodokļu statuss],Pasaknis),"") -> 1 | G16: Valsts pabalsts (no W-4) | I16: =IFERROR(INDEX(Darbinieki[Valsts pabalsts],Pasaknis),"") -> 1 | K16: Nostrādātās stundas | M16: =IFERROR(INDEX(Darbinieki[Nostrādātās stundas],Pasaknis),"") -> 40
C17: Stundas likme | E17: =IFERROR(INDEX(Darbinieki[Stundu samaksa],Pasaknis),"") -> 8 | G17: Virsstundu likme | I17: =IFERROR(INDEX(Darbinieki[Virsstundu likme],Pasaknis),"") -> 0 | K17: Slimības stundas | M17: =IFERROR(INDEX(Darbinieki[Slimības stundas],Pasaknis),"") -> 0
C18: Sociālais nodoklis | E18: =IFERROR(INDEX(Darbinieki[Sociālais nodoklis],Pasaknis) * INDEX(Darbinieki[Bruto samaksa],Pasaknis),"") -> 20.16 | G18: Valsts ienākumu nodoklis | I18: =IFERROR(INDEX(Darbinieki[Valsts ienākumu nodoklis],Pasaknis) * INDEX(Darbinieki[Bruto samaksa],Pasaknis),"") -> 89.6 | K18: Atvaļinājuma stundas | M18: =IFERROR(INDEX(Darbinieki[Atvaļinājuma stundas],Pasaknis),"") -> 0
C19: Medicīnas nodoklis | E19: =IFERROR(INDEX(Darbinieki[Medicīnas nodoklis],Pasaknis) * INDEX(Darbinieki[Bruto samaksa],Pasaknis),"") -> 4.64 | G19: Valsts nodoklis | I19: =IFERROR(INDEX(Darbinieki[Valsts nodoklis],Pasaknis) * INDEX(Darbinieki[Bruto samaksa],Pasaknis),"") -> 7.36 | K19: Virsstundas | M19: =IFERROR(INDEX(Darbinieki[Virsstundas],Pasaknis),"") -> 0
C20: Apdrošināšanas atvilkums | E20: =IFERROR(INDEX(Darbinieki[Apdrošināšanas atvilkums],Pasaknis),"") -> 0 | G20: Citi regulāri atvilkumi | I20: =IFERROR(INDEX(Darbinieki[Citi regulārie atvilkumi],Pasaknis),"") -> 10 | K20: Bruto samaksa | M20: =IFERROR(INDEX(Darbinieki[Bruto samaksa],Pasaknis),"") -> 320
C21: Nodokļi un | E21: =IFERROR(INDEX(Darbinieki[Nodokļi un atvilkumi],Pasaknis),"") -> 131.76 | G21: Citi atvilkumi | I21: =IFERROR(INDEX(Darbinieki[Citi atvilkumi],Pasaknis),"") -> 0 | K21: Nodokļi un atvilkumi kopā | M21: =IFERROR(INDEX(Darbinieki[Nodokļi un atvilkumi],Pasaknis) + INDEX(Darbinieki[Citi atvilkumi],Pasaknis),"") -> 131.76
C22: regulārie atvilkumi kopā
K23: NETO SAMAKSA | M23: =IFERROR(INDEX(Darbinieki[Neto samaksa],Pasaknis),"") -> 188.24
C26: =Uzņēmuma_nosaukums -> ADVENTURE WORKS
C27: PERIODS | D27: =Perioda_beigas -> 2013-04-08 | G27: VĀRDS, UZVĀRDS | H27: =IFERROR(INDEX(#REF!,Pasaknis),"") ->  | K27: DARBINIEKA ID | L27: =IFERROR(INDEX(Darbinieki[ID],Pasaknis),"") -> 1003
C28: Nodokļu statuss | E28: =IFERROR(INDEX(Darbinieki[Nodokļu statuss],Pasaknis),"") -> 1 | G28: Valsts pabalsts (no W-4) | I28: =IFERROR(INDEX(Darbinieki[Valsts pabalsts],Pasaknis),"") -> 3 | K28: Nostrādātās stundas | M28: =IFERROR(INDEX(Darbinieki[Nostrādātās stundas],Pasaknis),"") -> 35
C29: Stundas likme | E29: =IFERROR(INDEX(Darbinieki[Stundu samaksa],Pasaknis),"") -> 14 | G29: Virsstundu likme | I29: =IFERROR(INDEX(Darbinieki[Virsstundu likme],Pasaknis),"") -> 0 | K29: Slimības stundas | M29: =IFERROR(INDEX(Darbinieki[Slimības stundas],Pasaknis),"") -> 0
C30: Sociālais nodoklis | E30: =IFERROR(INDEX(Darbinieki[Sociālais nodoklis],Pasaknis) * INDEX(Darbinieki[Bruto samaksa],Pasaknis),"") -> 33.516 | G30: Valsts ienākumu nodoklis | I30: =IFERROR(INDEX(Darbinieki[Valsts ienākumu nodoklis],Pasaknis) * INDEX(Darbinieki[Bruto samaksa],Pasaknis),"") -> 148.96 | K30: Atvaļinājuma stundas | M30: =IFERROR(INDEX(Darbinieki[Atvaļinājuma stundas],Pasaknis),"") -> 3
C31: Medicīnas nodoklis | E31: =IFERROR(INDEX(Darbinieki[Medicīnas nodoklis],Pasaknis) * INDEX(Darbinieki[Bruto samaksa],Pasaknis),"") -> 7.714 | G31: Valsts nodoklis | I31: =IFERROR(INDEX(Darbinieki[Valsts nodoklis],Pasaknis) * INDEX(Darbinieki[Bruto samaksa],Pasaknis),"") -> 12.236 | K31: Virsstundas | M31: =IFERROR(INDEX(Darbinieki[Virsstundas],Pasaknis),"") -> 0
C32: Apdrošināšanas atvilkums | E32: =IFERROR(INDEX(Darbinieki[Apdrošināšanas atvilkums],Pasaknis),"") -> 18 | G32: Citi regulāri atvilkumi | I32: =IFERROR(INDEX(Darbinieki[Citi regulārie atvilkumi],Pasaknis),"") -> 20 | K32: Bruto samaksa | M32: =IFERROR(INDEX(Darbinieki[Bruto samaksa],Pasaknis),"") -> 532
C33: Nodokļi un | E33: =IFERROR(INDEX(Darbinieki[Nodokļi un atvilkumi],Pasaknis),"") -> 240.426 | G33: Citi atvilkumi | I33: =IFERROR(INDEX(Darbinieki[Citi atvilkumi],Pasaknis),"") -> 0 | K33: Nodokļi un atvilkumi kopā | M33: =IFERROR(INDEX(Darbinieki[Nodokļi un atvilkumi],Pasaknis) + INDEX(Darbinieki[Citi atvilkumi],Pasaknis),"") -> 240.426
C34: regulārie atvilkumi kopā
K35: NETO SAMAKSA | M35: =IFERROR(INDEX(Darbinieki[Neto samaksa],Pasaknis),"") -> 291.574
C38: =Uzņēmuma_nosaukums -> ADVENTURE WORKS
C39: PERIODS | D39: =Perioda_beigas -> 2013-04-08 | G39: VĀRDS, UZVĀRDS | H39: =IFERROR(INDEX(#REF!,Pasaknis),"") ->  | K39: DARBINIEKA ID | L39: =IFERROR(INDEX(Darbinieki[ID],Pasaknis),"") -> 1008
C40: Nodokļu statuss | E40: =IFERROR(INDEX(Darbinieki[Nodokļu statuss],Pasaknis),"") -> 1 | G40: Valsts pabalsts (no W-4) | I40: =IFERROR(INDEX(Darbinieki[Valsts pabalsts],Pasaknis),"") -> 0 | K40: Nostrādātās stundas | M40: =IFERROR(INDEX(Darbinieki[Nostrādātās stundas],Pasaknis),"") -> 50
C41: Stundas likme | E41: =IFERROR(INDEX(Darbinieki[Stundu samaksa],Pasaknis),"") -> 20 | G41: Virsstundu likme | I41: =IFERROR(INDEX(Darbinieki[Virsstundu likme],Pasaknis),"") -> 0 | K41: Slimības stundas | M41: =IFERROR(INDEX(Darbinieki[Slimības stundas],Pasaknis),"") -> 1
C42: Sociālais nodoklis | E42: =IFERROR(INDEX(Darbinieki[Sociālais nodoklis],Pasaknis) * INDEX(Darbinieki[Bruto samaksa],Pasaknis),"") -> 70.56 | G42: Valsts ienākumu nodoklis | I42: =IFERROR(INDEX(Darbinieki[Valsts ienākumu nodoklis],Pasaknis) * INDEX(Darbinieki[Bruto samaksa],Pasaknis),"") -> 313.6 | K42: Atvaļinājuma stundas | M42: =IFERROR(INDEX(Darbinieki[Atvaļinājuma stundas],Pasaknis),"") -> 5
C43: Medicīnas nodoklis | E43: =IFERROR(INDEX(Darbinieki[Medicīnas nodoklis],Pasaknis) * INDEX(Darbinieki[Bruto samaksa],Pasaknis),"") -> 16.24 | G43: Valsts nodoklis | I43: =IFERROR(INDEX(Darbinieki[Valsts nodoklis],Pasaknis) * INDEX(Darbinieki[Bruto samaksa],Pasaknis),"") -> 25.76 | K43: Virsstundas | M43: =IFERROR(INDEX(Darbinieki[Virsstundas],Pasaknis),"") -> 0
C44: Apdrošināšanas atvilkums | E44: =IFERROR(INDEX(Darbinieki[Apdrošināšanas atvilkums],Pasaknis),"") -> 15 | G44: Citi regulāri atvilkumi | I44: =IFERROR(INDEX(Darbinieki[Citi regulārie atvilkumi],Pasaknis),"") -> 0 | K44: Bruto samaksa | M44: =IFERROR(INDEX(Darbinieki[Bruto samaksa],Pasaknis),"") -> 1120
C45: Nodokļi un | E45: =IFERROR(INDEX(Darbinieki[Nodokļi un atvilkumi],Pasaknis),"") -> 441.16 | G45: Citi atvilkumi | I45: =IFERROR(INDEX(Darbinieki[Citi atvilkumi],Pasaknis),"") -> 0 | K45: Nodokļi un atvilkumi kopā | M45: =IFERROR(INDEX(Darbinieki[Nodokļi un atvilkumi],Pasaknis) + INDEX(Darbinieki[Citi atvilkumi],Pasaknis),"") -> 441.16
C46: regulārie atvilkumi kopā
K47: NETO SAMAKSA | M47: =IFERROR(INDEX(Darbinieki[Neto samaksa],Pasaknis),"") -> 678.84
